Cogmind - Beta 15 @@@ ROGUE MODE // 2025.06.17 @ 23:24:21 Player: 7604 Result: Self-destructed Performance ------------- Evolutions (0) 0 Regions Visited (3) 600 Robots Destroyed (9) 45 Value Destroyed (223) 223 Prototype IDs (2) 40 Alien Tech Used (0) 0 Bonus (300) 300 TOTAL SCORE: 1208 Bonus ------- Registered with UFD 300 Cogmind --------- Core Integrity 143/250 Matter 3/300 Energy 300/300 System Corruption 0% Temperature Cool (0) Movement Treading (240) Ox1 Location -7/Scraptown Parts ------- > --- POWER (1) -------- Angular Momentum Engine > --- PROPULSION (2) --- Improved Treads Overtuned Treads > --- UTILITY (2) ------ (None) > --- WEAPON (2) ------- Subdweller Laser Subdweller Beam Cannon > --- INVENTORY (5) ---- Makeshift Hacking Suite Overtuned Pulse Rifle Powered Cannon CPS Tube (2) Peak State ------------ > --- POWER ------------ Angular Momentum Engine > --- PROPULSION ------- Improved Treads Overtuned Treads > --- UTILITY ---------- Scrapoid Pod > --- WEAPON ----------- Subdweller Laser Subdweller Beam Cannon > --- INVENTORY -------- Makeshift Hacking Suite Overtuned Pulse Rifle Powered Cannon CPS Tube [Rating: 28] Favorites ----------- Power Ion Engine Engine Ion Engine Power Core Light Nuclear Core Propulsion Light Treads Treads Light Treads Leg Aluminum Leg Utility Seismic Detector Device Seismic Detector Storage Small Storage Unit Weapon Subdweller Laser Energy Gun Subdweller Laser Energy Cannon Subdweller Beam Cannon Ballistic Gun Light Assault Rifle Build | -11 -10 -10 -7 ------- Run | Yrd Mat Sub Scr Slots Evolved . | . . . . Power . | . . . . Propulsion . | . . . . Utility . | . . . . Weapon . | . . . . Parts Attached 15 | 1 2 5 7 Power 3 | . . 1 2 Engine 2 | . . 1 1 Core 1 | . . . 1 Reactor . | . . . . Propulsion 5 | . 2 1 2 Treads 5 | . 2 1 2 Leg . | . . . . Wheel . | . . . . Hover . | . . . . Flight . | . . . . Utility 4 | 1 . . 3 Device 2 | 1 . . 1 Storage 2 | . . . 2 Processor . | . . . . Hackware . | . . . . Protection . | . . . . Artifact . | . . . . Weapon 3 | . . 3 . Energy Gun 2 | . . 2 . Energy Cannon 1 | . . 1 . Ballistic Gun . | . . . . Ballistic Cannon . | . . . . Launcher . | . . . . Special Weapon . | . . . . Impact Weapon . | . . . . Slashing Weapon . | . . . . Piercing Weapon . | . . . . Special Melee Weapon . | . . . . Unidentified Prototypes . | . . . . Parts Lost 2 | . . 2 . Power 1 | . . 1 . Propulsion 1 | . . 1 . Utility . | . . . . Weapon . | . . . . Highest Loss Streak 1 | . . 1 . To Critical Strikes . | . . . . Average Backups 7 | 6 5 6 7 Power . | 1 1 . . Propulsion . | 4 3 2 . Utility . | . . . . Weapon 3 | 1 1 3 4 Tool/Special . | . . . . Unused Backups 37 | 6 2 5 24 Power 3 | 1 . 1 1 Propulsion 5 | 2 2 . 1 Utility 4 | 1 . . 3 Weapon 16 | 2 . 4 10 Tool/Special 9 | . . . 9 Average Slot Usage (%) 93 | . 100 96 92 Engine 11 | . 14 10 11 Core 2 | . . . 2 Treads 27 | . 23 28 28 Device 12 | . 14 14 12 Storage 9 | . 14 14 8 Energy Gun 13 | . . 21 14 Energy Cannon 11 | . . 3 14 Ballistic Gun 3 | . 28 3 . Peak Build Rating 28 | 7 7 11 28 Average Rating 16 | 6 7 10 18 On Entrance 7 | 6 7 7 11 Naked Turns . | . . . . Heaviest Build 66 | 11 11 23 66 Greatest Support 41 | 20 40 40 41 Greatest Overweight (x) 3 | . 3 . 2 Average Overweight (x) . | . 1 . . Largest Inventory Capacity 20 | 8 8 8 20 Average Capacity 9 | 8 8 8 10 Most Carried 20 | 6 7 8 20 Average Carried 8 | 6 5 7 9 Final Capacity 8 | 8 8 8 5 Final Carried 8 | 6 5 8 5 Class Distribution -------------------- 62% | Mutant 37% | Scavenger-Mutant Dominant Class ---------------- Mutant | -10/Materials Mutant | -10/Subcaves Mutant | -7/Scraptown Resources | -11 -10 -10 -7 ----------- Run | Yrd Mat Sub Scr Matter Collected 740 | 216 38 78 408 Remotely . | . . . . Salvage Created 360 | 44 49 267 . Parts 27 | 8 4 15 . Haulers Intercepted 1 | . 1 . . Recyclers Shooed 1 | 1 . . . Parts Field Recycled . | . . . . Retrieved Matter . | . . . . Parts Self-Destructed 8 | . . 8 . Prevented . | . . . . Kills | -11 -10 -10 -7 ------- Run | Yrd Mat Sub Scr Combat Hostiles Destroyed 5 | . . 5 . Guns 4 | . . 4 . Cannons 1 | . . 1 . Classes Destroyed 3 | 1 1 1 . Tunneler 3 | 3 . . . Hauler 1 | . 1 . . Subdweller 5 | . . 5 . Best Kill Streak 2 | 2 1 1 . Combat Bots Only 1 | . . 1 . Max Kills in Single Turn 1 | 1 1 1 . Gunslinging . | . . . . Exploded . | . . . . Melee . | . . . . Uniques/NPCs Destroyed . | . . . . Combat | -11 -10 -10 -7 -------- Run | Yrd Mat Sub Scr Hostile Shots Fired 43 | . 11 32 . Missed 8 | . 2 6 . Hits 35 | . 9 26 . Projectile 35 | . 9 26 . Critical Strikes 2 | . . 2 . Damage Taken 677 | . 90 587 . Core 107 | . 23 84 . Absorbed by Shields . | . . . . Core Remaining (%) 100 | 100 . . . Volleys Fired 41 | 8 4 29 . Largest 2 | 2 2 2 . Hottest 140 | 40 40 140 . Shots Fired 79 | 16 8 55 . Gun 75 | 16 8 51 . Cannon 4 | . . 4 . Launcher . | . . . . Special . | . . . . Kinetic 52 | 16 8 28 . Thermal 27 | . . 27 . Explosive . | . . . . Electromagnetic . | . . . . Robot Hit Streak 7 | 5 2 7 . Robot Miss Streak 1 | 1 1 1 . Penetration Max . | . . . . Secondary Targets . | . . . . Shots Hit Robots 50 | 10 4 36 . Core Hits 20 | 5 2 13 . Critical Kills 1 | . . 1 . Critical Parts Destroyed . | . . . . Critical Strikes 1 | . . 1 . Destroy 1 | . . 1 . Melee Attacks . | . . . . Impact . | . . . . Slashing . | . . . . Piercing . | . . . . Sneak Attacks . | . . . . Combat Hostiles . | . . . . Follow-up Attacks . | . . . . Damage Inflicted 547 | 83 31 433 . Guns 492 | 83 31 378 . Cannons 55 | . . 55 . Explosions . | . . . . Melee . | . . . . Ramming . | . . . . Kinetic 267 | 83 31 153 . Thermal 280 | . . 280 . Explosive . | . . . . Electromagnetic . | . . . . Impact . | . . . . Slashing . | . . . . Piercing . | . . . . Highest Corruption . | . . . . Average Corruption . | . . . . Corruption Purged . | . . . . Corruption Blocked . | . . . . Overload Shots . | . . . . Overflow Damage . | . . . . Projectiles . | . . . . Explosions . | . . . . Melee . | . . . . Knockbacks . | . . . . Impact . | . . . . Kinetic . | . . . . Secondary . | . . . . Self-Inflicted Damage . | . . . . Shots . | . . . . Rammed . | . . . . Targets Rammed . | . . . . Kicked . | . . . . Crushed . | . . . . Highest Temperature 72 | . . 72 . Average Temperature 26 | . . 26 . Received Heat Transfer 210 | . 30 180 . Siege Activations . | . . . . Martial Activations . | . . . . Shielding Activations . | . . . . Robots Disrupted . | . . . . Combat Hostiles . | . . . . Robots Corrupted . | . . . . Combat Hostiles . | . . . . Parts Fried . | . . . . Impact Corruptions . | . . . . Robots Melted . | . . . . Combat Hostiles . | . . . . Parts Melted . | . . . . Heat Transferred 349 | . . 349 . Parts Sabotaged . | . . . . Parts Stolen . | . . . . Parts Stripped . | . . . . Power Chain Reactions . | . . . . Alert | -11 -10 -10 -7 ------- Run | Yrd Mat Sub Scr Maximum Alert Level . | . . . . Low Security (%) 100 | 100 100 . . Level 1 . | . . . . Level 2 . | . . . . Level 3 . | . . . . Level 4 . | . . . . Level 5 . | . . . . High Security . | . . . . Max Security . | . . . . Peak Influence 36 | 10 36 . . Initial 6 | . 6 . . Average 3 | 2 4 . . Influence Increases 86 | 15 71 . . Destroy 0b10 Robot/NC 20 | 15 5 . . Destroy Leader 2 | . 2 . . Successful Hack 34 | . 34 . . Select Force Hacks 30 | . 30 . . Influence Decreases 86 | 5 81 . . Entered New Map 4 | . 4 . . Time Decay 82 | 5 77 . . Squads Dispatched 2 | . 2 . . Investigation 2 | . 2 . . Extermination . | . . . . Reinforcement . | . . . . Assault . | . . . . Garrison . | . . . . Intercept . | . . . . Searches Triggered . | . . . . Construction Impeded . | . . . . Haulers Reinforced . | . . . . Active Scanning Responses . | . . . . Cargo Convoy Interrupts . | . . . . Stealth | -11 -10 -10 -7 --------- Run | Yrd Mat Sub Scr Distress Signals . | . . . . Communications Jammed . | . . . . Distress Signals . | . . . . Times Spotted 25 | . 12 13 . Peak Tracking Total 4 | . 3 4 . Tactical Retreats . | . . . . Traps | -11 -10 -10 -7 ------- Run | Yrd Mat Sub Scr Traps Triggered . | . . . . Indirectly . | . . . . Trap Hack Attempts . | . . . . Triggered . | . . . . Disarmed . | . . . . Reprogrammed . | . . . . Reused . | . . . . Traps Extracted . | . . . . Installed . | . . . . Triggered . | . . . . Machines | -11 -10 -10 -7 ---------- Run | Yrd Mat Sub Scr Machines Disabled . | . . . . Max in Single Turn . | . . . . Machines Repaired . | . . . . Machines Dismantled . | . . . . Machines Sabotaged . | . . . . Overloaded Fab Kills . | . . . . Hacking | -11 -10 -10 -7 --------- Run | Yrd Mat Sub Scr Machines Accessed 10 | . 7 . 3 Terminals 6 | . 6 . . Fabricators . | . . . . Repair Stations . | . . . . Recycling Units 1 | . 1 . . Scanalyzers . | . . . . Garrison Access . | . . . . Total Hacks 44 | . 26 . 18 Successful 30 | . 12 . 18 Failed 14 | . 14 . . Catastrophic 1 | . 1 . . Database Lockouts . | . . . . Manual 18 | . 18 . . Terminals 25 | . 25 . . Fabricators . | . . . . Repair Stations . | . . . . Recycling Units 1 | . 1 . . Scanalyzers . | . . . . Garrison Access . | . . . . Terminal Hacks 21 | . 3 . 18 Record 11 | . . . 11 Part Schematic 1 | . 1 . . Robot Analysis 7 | . . . 7 Prototype ID Bank 1 | . 1 . . Terminal Index 1 | . 1 . . Fabricator Hacks . | . . . . Repair Station Hacks . | . . . . Recycling Unit Hacks . | . . . . Scanalyzer . | . . . . Garrison Access Hacks . | . . . . Unauthorized Hacks 9 | . 9 . . Terminals 8 | . 8 . . Track 1 | . 1 . . Botnet 1 | . 1 . . Disrupt 1 | . 1 . . Skim 5 | . 5 . . Fabricators . | . . . . Repair Stations . | . . . . Recycling Units 1 | . 1 . . Tunnel 1 | . 1 . . Scanalyzers . | . . . . Garrison Access . | . . . . Data Cores Recovered . | . . . . Used . | . . . . Hacking Detections 5 | . 5 . . Full Trace Events . | . . . . Feedback Events . | . . . . Feedback Blocked . | . . . . Robot Schematics Acquired . | . . . . Robots Built . | . . . . Authchips . | . . . . Time . | . . . . Total Robot Build Rating . | . . . . Part Schematics Acquired 1 | . 1 . . Parts Built . | . . . . Authchips . | . . . . Time . | . . . . Total Part Build Rating . | . . . . Parts Repaired . | . . . . Time . | . . . . Parts Recycled . | . . . . Recycled Matter . | . . . . Retrieved Matter . | . . . . Retrieved Components . | . . . . Parts Scanalyzed . | . . . . Part Schematics Acquired . | . . . . Parts Damaged . | . . . . Bothacking | -11 -10 -10 -7 ------------ Run | Yrd Mat Sub Scr Used RIF Installer . | . . . . Robots Hacked . | . . . . Non-combat . | . . . . Combat . | . . . . Robot Hacks Applied . | . . . . Relay Couplers Released . | . . . . Fabnet Peak Effective % . | . . . . Robots Rewired . | . . . . Allies Hacked . | . . . . Hacks Repelled . | . . . . Allies | -11 -10 -10 -7 -------- Run | Yrd Mat Sub Scr Total Allies . | . . . . Largest Group . | . . . . Highest-Rated Group . | . . . . Highest-Rated Ally . | . . . . Total Orders . | . . . . Ally Attacks . | . . . . Total Damage . | . . . . Kills . | . . . . Allies Corrupted . | . . . . Allies Melted . | . . . . Intel | -11 -10 -10 -7 ------- Run | Yrd Mat Sub Scr Active Infowar (turns) 4428 | 2 582 804 3040 Seismic 4428 | 2 582 804 3040 Robot Analysis Total 7 | . . . 7 Derelict Logs Recovered 5 | . . 1 4 Drone Launches . | . . . . Drone Recoveries . | . . . . Exploration | -11 -10 -10 -7 ------------- Run | Yrd Mat Sub Scr Turns Passed 6452 | 77 582 804 4989 Spaces Moved 3435 | 46 307 418 2664 Core 161 | . 161 . . Treads 3176 | . 94 418 2664 Legs 98 | 46 52 . . Wheels . | . . . . Hover . | . . . . Flight . | . . . . Fastest Speed 120 | 120 120 160 150 Average Speed 180 | 120 174 160 185 Slowest Speed 320 | 120 200 160 320 Overloaded Moves . | . . . . Propulsion Burnouts . | . . . . Robots Hopped . | . . . . Potential Cave-ins . | . . . . Cave-ins Triggered . | . . . . Exploration Rate (%) 38 | 4 42 20 87 Regions Visited 3 Branch Regions 2 Pre-discovered Areas 5 | . 3 . 2 Known Exits Taken . | . . . . Unknown Exits Taken 3 | 1 1 1 . Scrap Searched 11 | . . 2 9 Spaces Dug . | . . . . Terrain Destroyed . | . . . . Melee . | . . . . Projectile . | . . . . AOE . | . . . . Terrain Rammed . | . . . . Walls Destroyed . | . . . . Machines Disabled . | . . . . Actions | -11 -10 -10 -7 --------- Run | Yrd Mat Sub Scr Total 3630 | 54 348 506 2722 Wait 84 | . 33 42 9 Move 3432 | 45 306 417 2664 Hop . | . . . . Pick Up 30 | . 1 6 23 Fast Attach 7 | 1 . 3 3 Attach 2 | . . 2 . Detach 4 | . . 1 3 Swap 6 | . 2 . 4 Drop 24 | . 2 6 16 Fire 41 | 8 4 29 . Melee . | . . . . Ram . | . . . . Kick . | . . . . Crush . | . . . . Escape Stasis . | . . . . Rewire . | . . . . Trap . | . . . . Miscellaneous . | . . . . Route ------- -11/Scrapyard -10/Materials (discovered 5 exits: *Mat x3 / Min / [*Sub]) -10/Subcaves (discovered 4 exits: *Mat x2 / Rec / *Scr) -7/Scraptown (discovered 1 exit: [*Fac]) History --------- Turn | Location | Event 1 | -11/Scrapyard | Discovered new exit (range 3) 78 | -11/Scrapyard | Entered Materials 79 | -10/Materials | Met a group of wandering Federalists 135 | -10/Materials | Discovered new exit (range 14) 278 | -10/Materials | Discovered new exit (range 3) 281 | -10/Materials | Discovered new exit (range 9) 301 | -10/Materials | Build established: Mutant 358 | -10/Materials | Learned 2 Storage zone layouts 412 | -10/Materials | Identified exit to Mines 412 | -10/Materials | Identified exit to Materials 493 | -10/Materials | Learned location of 2 exits from Materials 517 | -10/Materials | Learned location of Storage (-7) 561 | -10/Materials | Learned location of 2 exits from Subcaves 645 | -10/Materials | Learned location of 2 exits from Mines 660 | -10/Materials | Entered Subcaves 661 | -10/Subcaves | Continued accompanying wandering Federalists (3) 661 | -10/Subcaves | Approached by a straggling Scientist 661 | -10/Subcaves | Identified exit to Materials 661 | -10/Subcaves | Identified exit to Recycling 675 | -10/Subcaves | A Subdweller sparked back to life 675 | -10/Subcaves | A Subdweller sparked back to life 675 | -10/Subcaves | A Subdweller sparked back to life 690 | -10/Subcaves | Found Prototype Energy Cannon 880 | -10/Subcaves | Wandering Federalist uncovered a shortcut to Scraptown 980 | -10/Subcaves | Discovered exit to Materials (range 14) 1196 | -10/Subcaves | Learned Materials stockpile data 1256 | -10/Subcaves | Disturbed a concealed Subdweller 1464 | -10/Subcaves | Entered Scraptown 1694 | -7/Scraptown | Heard Great Nut preacher, LISTEN AND RECITE! 1714 | -7/Scraptown | Scanned Subdweller tech in exchange for log data 1718 | -7/Scraptown | Learned location of 1 exit from Research 1719 | -7/Scraptown | Learned Factory emergency access door positions 1721 | -7/Scraptown | Learned location of Armory (-4) 1722 | -7/Scraptown | Learned location of Zion (-6) 1730 | -7/Scraptown | Build established: Scavenger-Mutant 1818 | -7/Scraptown | Visited Bundlers 1914 | -7/Scraptown | Visited CPS Storage 1934 | -7/Scraptown | Visited Cyclists 1966 | -7/Scraptown | Visited UFD Registry 1966 | -7/Scraptown | Registered with UFD as "Cryocore" 2199 | -7/Scraptown | Visited SPCMW 2212 | -7/Scraptown | Visited Symbiants 2227 | -7/Scraptown | Visited The Evicted 2292 | -7/Scraptown | Visited Chapter 10 2332 | -7/Scraptown | Visited LU-1G1's Boring Crew 2355 | -7/Scraptown | Visited Derelict Rescue Squad 2404 | -7/Scraptown | Delivered Scrap Shield to a Scientist 2492 | -7/Scraptown | Visited Scrapoid Pod Storage 2515 | -7/Scraptown | Visited Analyses Database 2564 | -7/Scraptown | Visited Cartography Club 2590 | -7/Scraptown | Visited Scrap Suit Storage 2646 | -7/Scraptown | Visited Modified Component R&D 2858 | -7/Scraptown | Found DRS Beacon 3544 | -7/Scraptown | Discovered new exit (range 11) 4110 | -7/Scraptown | Build established: Mutant 4508 | -7/Scraptown | Found Scrapoid Pod 4556 | -7/Scraptown | Received an X-ray algorithm 4954 | -7/Scraptown | Visited Awakened 5883 | -7/Scraptown | Entered Cyclist Reading Room 6453 | -7/Scraptown | Self-destructed Last Messages --------------- If you'd like to make a nomination, contact Memcruiser. 06336_ The floor rises up to form a wall. 06336_ The wall retracts into the floor. 06340_ The floor rises up to form a wall. G3-L14(x): There I was, trying to peek around what I thought was the last corner of the cave system to make sure I hadn't missed anything. Of course there was a Behemoth right there. Of course it spotted me. Of course the inevitable cannon fire blasted out the wall behind me as I ran for my life. You think it's safe now? It's probably safe now... I must know what else is around that corner. 06360_ The wall retracts into the floor. 06369_ Triggered a sensor switch. 06375_ Ovr. Treads suddenly begins malfunctioning. 51-NRM(h): The work we do is quite important to Derelicts at large, plus it's also a thrill to collect map data while risking almost certain death! 06416_ Ovr. Treads recovered from malfunction. 06451_ Ovr. Treads suddenly begins malfunctioning. Map ----- +----------------------------------------------------+ | ### ########### ##### ## ##???###???????????????? | | """ """"""""""" """"" "" "#??? ???????????????? | | "#?? """???????????????? | | "#?? "#???? "??????????? | | "#?" "## ??????????? | | "##" " " #?????????? | | " "#?????????????? | | """"""""""""""""""""" "##" "#?????????????? | | """"""""""""""""""""" "#?" """????????????? | | # ################"" "#?? "" ???????????? | | ##????????#"" "###########???????????? | | X"#????????#"" "## """"#?????????????? | | " "" ##????????#"" "## " "#?????????????? | | "" X"#??????###"" "## X"#?????????????? | | " ######### #"" "## "#?????????????? | | "" ""#?????????????? | | "" "## " "#?????????????? | | " ######### #"" "## """"#?????????????? | | "" ""#??????###"" "## """"#?????????????? | | " "" ##????????#"" "#########?????????????? | | X"#????????#"" "##"""" #??????????????? | | ##????????#"" "## "#??????????????? | | # ################"" "##![ "#??????????????? | | """"""""""""""""""""" "##=|| "#??????????????? | | """"""""""""""""""""" |[!!|"#??????????????? | | @"##[&=*"#??????????????? | | g "##![] "#??????????????? | | "##"""""#??????????????? | | ########??????????????? | | E#????????????????????? | | """"" """"""""""" """""" ##????????????????????? | | ##### ########### ###### #?????????????????????? | | ??? ???# #??# #?????????????????????? | | ??# #??# #??# #?????????????????????? | | ??# #??# #??# #?????????????????????? | | ??# #??#"" ""#??# #?????????????????????? | | ??#######??#" "#??# #?????????????????????? | | ???????????#"" ""#??# ############??????????? | | ???????????#" "#??# #??????????? | | ???????????#"" ""#??# ##??????????? | | ???????????#" "#??# #??????????? | | ???????????#" && " "#??# #??????????? | | ???????????#""""""""#??# #??????????? | | ???????????##########??# ############??????????? | | ###?#####?############## #####?????????????????? | | """##"""##"""##"""##"|"# """"#?????????????????? | | |""##" "##"""##""|##" # "" "#?????????????????? | | "#?????????????????? | | " "#?????????????????? | | """"#?????????????????? | +----------------------------------------------------+ Best States ------------- Heat Dissipation 25 Energy Generation 18 Energy Capacity 300 Matter Stores 300 Matter Capacity 300 Sight Range 16 Terrain Scan Density 10 Evasion (%) 55 Recoil Reduction 2 Item Schematics ----------------- Huge Storage Unit | -10/Materials | Hacked Robot Schematics ------------------ None Fabricated ------------ Nothing Repaired ---------- Nothing Alien Tech Used ----------------- None Achievements -------------- None Challenges ------------ None Game ------ Seed DirtyPointyRefractor Manual? 0 Play Time 00:24:22 Cumulative 452.9 hours Start 2025.06.16 @ 22:43:59 End 2025.06.17 @ 23:24:21 Sessions 3 Manual Loads 0 Difficulty Rogue Special Mode None Game No. 231 Rogue 168 Adventurer 63 Explorer 0 Win Type - Total 9 Types 8/0/0/1/0/0/0/0/0/0 Lore% 89 Gallery% 80 Achievement% 66 Wizard Run 0 Options --------- Layout 0 ASCII 0 Keyboard 1 Movement Numpad Keybinds 0 Fullscreen 1 Font 18/Terminus Map View 76x50 Zoom Use 0% Tactical HUD 1 Map Filters NONE Filters NONE Steam 1 RUN: 5815d320-ce01-4d7e-a2bf-f70e661cc890